Cogmind - Beta 13 @@@ ROGUE MODE // 2024.07.26 @ 20:11:47 Player: Wonda Result: Destroyed by L-41 Fighter with Axe Performance ------------- Evolutions (3) 1500 Regions Visited (8) 1600 Robots Destroyed (42) 210 Value Destroyed (1152) 1152 Prototype IDs (13) 260 Alien Tech Used (0) 0 Bonus (554) 554 TOTAL SCORE: 5276 Bonus ------- High Alert Combat Kills 43 Follower Combat Kills 211 Met Data Miner 300 Cogmind --------- Core Integrity 0/700 Matter 308/450 Energy 32/100 System Corruption 3% Temperature Cool (0) Movement Core (100) Ox1 Location -6/Proximity Caves Parts ------- > --- POWER (1) -------- (None) > --- PROPULSION (6) --- (None) > --- UTILITY (4) ------ Compact Matter Pod > --- WEAPON (2) ------- Arc Projector > --- INVENTORY (5) ---- Advanced Visual Processing Unit ECM Suite Peak State ------------ > --- POWER ------------ (None) > --- PROPULSION ------- Compact Wheel Gravmag System > --- UTILITY ---------- Salvage Targeting Computer Medium Armor Plating Thermal Shield Recalibrator > --- WEAPON ----------- Shotgun > --- INVENTORY -------- Advanced Visual Processing Unit ECM Suite [Rating: 20] Favorites ----------- Power Light Nuclear Core Engine Ion Engine Power Core Light Nuclear Core Propulsion Light Treads Treads Light Treads Wheel Compact Wheel Hover Unit Gravmag System Flight Unit Flight Unit Utility Small Storage Unit Device Recalibrator Storage Small Storage Unit Processor Salvage Targeting Computer Protection Medium Armor Plating Weapon Assault Rifle Energy Gun EM Pulse Gun Energy Cannon Neutron Cannon Ballistic Gun Assault Rifle Launcher Grenade Launcher Special Weapon Mining Laser Build | -11 -10 -10 -9 -8 -7 -7 -7 -6 ------- Run | Yrd Mat Min Mat Mat Fac Low Dat Pro Slots Evolved 6 | . . . 2 2 2 . . . Power . | . . . . . . . . . Propulsion 4 | . . . 2 2 . . . . Utility 2 | . . . . . 2 . . . Weapon . | . . . . . . . . . Parts Attached 57 | 6 15 4 13 3 8 . . 8 Power 6 | 1 3 . 1 . 1 . . . Engine 3 | 1 2 . . . . . . . Core 3 | . 1 . 1 . 1 . . . Reactor . | . . . . . . . . . Propulsion 14 | 2 5 . 4 . 1 . . 2 Treads 7 | 2 5 . . . . . . . Leg . | . . . . . . . . . Wheel 2 | . . . . . 1 . . 1 Hover 1 | . . . . . . . . 1 Flight 4 | . . . 4 . . . . . Utility 14 | 1 4 . 2 1 3 . . 3 Device 5 | . 1 . 1 . 2 . . 1 Storage 3 | 1 1 . . . . . . 1 Processor 4 | . 2 . 1 1 . . . . Hackware . | . . . . . . . . . Protection 2 | . . . . . 1 . . 1 Artifact . | . . . . . . . . . Weapon 23 | 2 3 4 6 2 3 . . 3 Energy Gun 3 | . . 1 1 . . . . 1 Energy Cannon 1 | . . . . . . . . 1 Ballistic Gun 9 | 2 . 2 2 . 2 . . 1 Ballistic Cannon . | . . . . . . . . . Launcher 7 | . 1 . 3 2 1 . . . Special Weapon 3 | . 2 1 . . . . . . Impact Weapon . | . . . . . . . . . Slashing Weapon . | . . . . . . . . . Piercing Weapon . | . . . . . . . . . Special Melee Weapon . | . . . . . . . . . Unidentified Prototypes 2 | . . . 1 . . . . 1 Parts Lost 17 | . 1 3 3 . 6 . . 4 Power 2 | . . . 1 . 1 . . . Propulsion 3 | . . . 1 . 1 . . 1 Utility 4 | . 1 . . . 1 . . 2 Weapon 8 | . . 3 1 . 3 . . 1 Highest Loss Streak 3 | . 1 3 2 . 3 . . 2 To Critical Strikes . | . . . . . . . . . Average Slot Usage (%) 63 | . 92 95 43 36 38 46 46 26 Engine 3 | . 8 . . . . . . . Core 3 | . 5 14 3 . 1 . . . Treads 12 | . 28 28 . . . . . . Wheel 1 | . . . . . 5 7 7 3 Flight 2 | . . . 13 9 1 . . . Device 4 | . 1 . . . 6 15 15 8 Storage 6 | . 14 14 . . . . . . Processor 7 | . 4 14 14 18 8 7 7 3 Protection 1 | . . . . . 3 7 7 3 Ballistic Gun 9 | . 16 10 3 . 5 7 7 2 Launcher 6 | . 11 . 8 9 2 . . . Naked Turns 121 | . . . . . . . . 121 Heaviest Build 16 | 13 16 13 11 4 14 14 14 14 Greatest Support 40 | 40 40 40 12 4 16 16 16 16 Greatest Overweight (x) 4 | 4 4 . 1 . . . . 4 Average Overweight (x) . | . . . . . . . . . Largest Inventory Capacity 8 | 8 8 8 8 5 5 5 5 5 Average Capacity 6 | 7 8 8 5 5 5 5 5 5 Most Carried 8 | 1 8 8 8 5 5 1 1 3 Average Carried 3 | . 4 6 4 4 1 1 1 2 Final Capacity 8 | 8 8 8 5 5 5 5 5 5 Final Carried 8 | 1 7 8 5 5 1 1 1 2 Class Distribution -------------------- 98% | Mutant Dominant Class ---------------- Mutant | -10/Materials Mutant | -10/Mines Mutant | -9/Materials Mutant | -8/Materials Mutant | -7/Factory Mutant | -7/Lower Caves Mutant | -7/Data Miner Mutant | -6/Proximity Caves Resources | -11 -10 -10 -9 -8 -7 -7 -7 -6 ----------- Run | Yrd Mat Min Mat Mat Fac Low Dat Pro Matter Collected 1346 | 174 396 15 324 33 134 22 . 248 Remotely . | . . . . . . . . . Salvage Created 1079 | . 395 11 486 38 102 . . 47 Parts 84 | . 32 . 38 2 6 . . 6 Haulers Intercepted 1 | . . . 1 . . . . . Recyclers Shooed . | . . . . . . . . . Parts Field Recycled . | . . . . . . . . . Retrieved Matter . | . . . . . . . . . Parts Self-Destructed 18 | . . . . . . . . 18 Prevented . | . . . . . . . . . Kills | -11 -10 -10 -9 -8 -7 -7 -7 -6 ------- Run | Yrd Mat Min Mat Mat Fac Low Dat Pro Combat Hostiles Destroyed 34 | . 12 1 15 2 1 . . 3 Guns 13 | . 10 . 2 . . . . 1 Cannons 2 | . . 1 . . . . . 1 AOE 19 | . 2 . 13 2 1 . . 1 Classes Destroyed 11 | . 4 . 3 1 2 . . 1 Worker 2 | . 1 . . . 1 . . . Builder 1 | . . . . . 1 . . . Hauler 1 | . . . 1 . . . . . Recycler 2 | . 1 . 1 . . . . . Operator 2 | . . . . 1 1 . . . Drone 1 | . . . . . . . . 1 Swarmer 12 | . 6 . 4 . . . . 2 Grunt 16 | . 6 1 7 2 . . . . Duelist 1 | . . . 1 . . . . . Sentry 3 | . . . 3 . . . . . Hunter 1 | . . . . . 1 . . . Best Kill Streak 8 | . 5 1 8 3 2 . . 2 Combat Bots Only 8 | . 3 1 8 2 1 . . 2 Max Kills in Single Turn 3 | . 3 1 3 1 1 . . 1 Gunslinging . | . . . . . . . . . Exploded 2 | . 2 . 2 1 1 . . 1 Melee . | . . . . . . . . . Uniques/NPCs Destroyed . | . . . . . . . . . Combat | -11 -10 -10 -9 -8 -7 -7 -7 -6 -------- Run | Yrd Mat Min Mat Mat Fac Low Dat Pro Hostile Shots Fired 227 | . 60 36 34 6 22 . . 69 Missed 73 | . 23 9 12 2 6 . . 21 Damage Taken 2528 | . 450 292 344 65 376 . . 1001 Core 1043 | . 28 88 171 48 115 . . 593 Absorbed by Shields . | . . . . . . . . . Ignored by Resistances 19 | . . . . . . . . 19 Regen/Repaired (Parts) 18 | . . . 18 . . . . . Core Remaining (%) 75 | 100 . 53 57 91 . . . . Volleys Fired 132 | . 51 14 29 10 13 . . 15 Largest 2 | . 2 2 1 1 2 . . 1 Hottest 200 | . 50 200 33 33 59 . . 90 Shots Fired 154 | . 67 19 29 10 14 . . 15 Gun 94 | . 64 6 14 . 1 . . 9 Cannon 6 | . . . . . . . . 6 Launcher 41 | . 3 . 15 10 13 . . . Special 13 | . . 13 . . . . . . Kinetic 92 | . 64 6 14 . 1 . . 7 Thermal 19 | . . 13 . . . . . 6 Explosive 33 | . 3 . 15 10 5 . . . Electromagnetic 10 | . . . . . 8 . . 2 Robot Hit Streak 11 | . 11 5 8 3 2 . . 3 Robot Miss Streak 5 | . 3 2 2 1 2 . . 5 Penetration Max . | . . . . . . . . . Secondary Targets . | . . . . . . . . . Shots Hit Robots 90 | . 40 10 17 6 7 . . 10 Core Hits 76 | . 24 2 30 9 7 . . 4 Critical Kills 2 | . 1 . 1 . . . . . Critical Parts Destroyed . | . . . . . . . . . Critical Strikes 2 | . 1 . 1 . . . . . Destroy 2 | . 1 . 1 . . . . . Melee Attacks . | . . . . . . . . . Impact . | . . . . . . . . . Slashing . | . . . . . . . . . Piercing . | . . . . . . . . . Sneak Attacks . | . . . . . . . . . Combat Hostiles . | . . . . . . . . . Follow-up Attacks . | . . . . . . . . . Damage Inflicted 2921 | . 640 170 1003 384 450 . . 274 Guns 774 | . 476 50 170 . . . . 78 Cannons 145 | . . . . . . . . 145 Explosions 1852 | . 145 . 833 384 450 . . 40 Melee . | . . . . . . . . . Ramming 30 | . 19 . . . . . . 11 Kinetic 752 | . 476 50 170 . . . . 56 Thermal 344 | . . 120 . . 39 . . 185 Explosive 1523 | . 145 . 818 384 176 . . . Electromagnetic 272 | . . . 15 . 235 . . 22 Impact . | . . . . . . . . . Slashing . | . . . . . . . . . Piercing . | . . . . . . . . . Highest Corruption 3 | . . . . . 2 2 2 3 Average Corruption 2 | . . . . . 1 2 2 2 Corruption Purged . | . . . . . . . . . Corruption Blocked . | . . . . . . . . . Effects 11 | . . . . . 5 2 . 4 Message Errors 2 | . . . . . 1 . . 1 Matter Fused 1 | . . . . . . . . 1 Heat Flow Errors 1 | . . . . . 1 . . . Energy Discharges 3 | . . . . . 2 1 . . Parts Rejected 1 | . . . . . . . . 1 Data Loss (minor) 3 | . . . . . 1 1 . 1 Overload Shots . | . . . . . . . . . Overflow Damage 57 | . . . 2 3 41 . . 11 Projectiles 11 | . . . . . . . . 11 Explosions 46 | . . . 2 3 41 . . . Melee . | . . . . . . . . . Knockbacks . | . . . . . . . . . Impact . | . . . . . . . . . Kinetic . | . . . . . . . . . Secondary . | . . . . . . . . . Self-Inflicted Damage 193 | . 8 . 58 . 122 . . 5 Shots 8 | . 1 . 2 . 5 . . . Rammed 5 | . 3 . . . . . . 2 Targets Rammed 5 | . 3 . . . . . . 2 Kicked . | . . . . . . . . . Crushed . | . . . . . . . . . Highest Temperature 334 | . 17 334 6 . 171 . . 66 Average Temperature 121 | . 6 164 3 . 108 . . 27 Received Heat Transfer 663 | . 228 162 99 36 . . . 138 Effects 6 | . . 6 . . . . . . Interference 4 | . . 4 . . . . . . Damage (minor) 2 | . . 2 . . . . . . Siege Activations . | . . . . . . . . . Robots Corrupted . | . . . . . . . . . Combat Hostiles . | . . . . . . . . . Parts Fried 3 | . . . . . 3 . . . Impact Corruptions . | . . . . . . . . . Robots Melted . | . . . . . . . . . Combat Hostiles . | . . . . . . . . . Parts Melted . | . . . . . . . . . Heat Transferred 300 | . . 250 . . . . . 50 Parts Sabotaged . | . . . . . . . . . Parts Stolen . | . . . . . . . . . Parts Stripped . | . . . . . . . . . Power Chain Reactions 2 | . . . . . 1 . . 1 Alert | -11 -10 -10 -9 -8 -7 -7 -7 -6 ------- Run | Yrd Mat Min Mat Mat Fac Low Dat Pro Peak Influence 658 | . 190 74 658 347 227 . . . Initial 193 | . . 44 22 193 157 . . . Average 156 | . 77 59 401 222 202 . . . Maximum Alert Level 2 | . . . 2 1 1 . . . Low Security (%) 70 | 100 100 100 15 63 22 . . . Level 1 19 | . . . 30 36 77 . . . Level 2 9 | . . . 54 . . . . . Level 3 . | . . . . . . . . . Level 4 . | . . . . . . . . . Level 5 . | . . . . . . . . . High Security . | . . . . . . . . . Max Security . | . . . . . . . . . Squads Dispatched 5 | . 2 . 1 1 . . . 1 Investigation 2 | . 1 . 1 . . . . . Extermination . | . . . . . . . . . Reinforcement 2 | . 1 . . 1 . . . . Assault 1 | . . . . . . . . 1 Garrison . | . . . . . . . . . Intercept . | . . . . . . . . . Searches Triggered . | . . . . . . . . . Construction Impeded . | . . . . . . . . . Haulers Reinforced . | . . . . . . . . . Active Scanning Responses . | . . . . . . . . . Cargo Convoy Interrupts . | . . . . . . . . . Stealth | -11 -10 -10 -9 -8 -7 -7 -7 -6 --------- Run | Yrd Mat Min Mat Mat Fac Low Dat Pro Distress Signals 2 | . 1 . 1 . . . . . Communications Jammed . | . . . . . . . . . Distress Signals . | . . . . . . . . . Times Spotted 73 | . 24 1 17 4 3 . . 24 Peak Tracking Total 7 | . 4 1 4 2 1 . . 7 Tactical Retreats 9 | . 1 1 1 . . . . 6 Traps | -11 -10 -10 -9 -8 -7 -7 -7 -6 ------- Run | Yrd Mat Min Mat Mat Fac Low Dat Pro Traps Triggered 9 | . 4 . 1 . 4 . . . Indirectly . | . . . . . . . . . Trap Hack Attempts . | . . . . . . . . . Triggered . | . . . . . . . . . Disarmed . | . . . . . . . . . Reprogrammed . | . . . . . . . . . Reused . | . . . . . . . . . Traps Extracted . | . . . . . . . . . Installed . | . . . . . . . . . Triggered . | . . . . . . . . . Most Traps Carried 3 | . . 3 3 . . . . . Machines | -11 -10 -10 -9 -8 -7 -7 -7 -6 ---------- Run | Yrd Mat Min Mat Mat Fac Low Dat Pro Machines Disabled 9 | . . . 5 2 2 . . . Max in Single Turn 1 | . . . 1 1 1 . . . Machines Repaired . | . . . . . . . . . Machines Dismantled . | . . . . . . . . . Machines Sabotaged . | . . . . . . . . . Overloaded Fab Kills . | . . . . . . . . . Hacking | -11 -10 -10 -9 -8 -7 -7 -7 -6 --------- Run | Yrd Mat Min Mat Mat Fac Low Dat Pro Machines Accessed 10 | . 2 . 2 1 1 . 4 . Terminals 4 | . 2 . . 1 1 . . . Fabricators . | . . . . . . . . . Repair Stations 1 | . . . 1 . . . . . Recycling Units 1 | . . . 1 . . . . . Scanalyzers . | . . . . . . . . . Garrison Access . | . . . . . . . . . Total Hacks 40 | . 5 . 3 1 2 . 29 . Successful 35 | . 1 . 3 1 1 . 29 . Failed 5 | . 4 . . . 1 . . . Catastrophic 1 | . . . . . 1 . . . Database Lockouts . | . . . . . . . . . Manual 6 | . 5 . . . 1 . . . Terminals 8 | . 5 . . 1 2 . . . Fabricators . | . . . . . . . . . Repair Stations 2 | . . . 2 . . . . . Recycling Units 1 | . . . 1 . . . . . Scanalyzers . | . . . . . . . . . Garrison Access . | . . . . . . . . . Terminal Hacks 32 | . 1 . . 1 1 . 29 . Record 13 | . . . . 1 1 . 11 . Part Schematic 10 | . . . . . . . 10 . Robot Schematic 5 | . . . . . . . 5 . Prototype ID Bank 3 | . . . . . . . 3 . Recall Investigation 1 | . 1 . . . . . . . Fabricator Hacks . | . . . . . . . . . Repair Station Hacks 2 | . . . 2 . . . . . Scan Component 1 | . . . 1 . . . . . Repair 1 | . . . 1 . . . . . Recycling Unit Hacks 1 | . . . 1 . . . . . Report Inventory 1 | . . . 1 . . . . . Scanalyzer . | . . . . . . . . . Garrison Access Hacks . | . . . . . . . . . Unauthorized Hacks . | . . . . . . . . . Terminals . | . . . . . . . . . Fabricators . | . . . . . . . . . Repair Stations . | . . . . . . . . . Recycling Units . | . . . . . . . . . Scanalyzers . | . . . . . . . . . Garrison Access . | . . . . . . . . . Data Cores Recovered . | . . . . . . . . . Used . | . . . . . . . . . Hacking Detections 3 | . 2 . . 1 . . . . Full Trace Events . | . . . . . . . . . Feedback Events . | . . . . . . . . . Feedback Blocked . | . . . . . . . . . Robot Schematics Acquired 5 | . . . . . . . 5 . Robots Built . | . . . . . . . . . Authchips . | . . . . . . . . . Time . | . . . . . . . . . Total Robot Build Rating . | . . . . . . . . . Part Schematics Acquired 10 | . . . . . . . 10 . Parts Built . | . . . . . . . . . Authchips . | . . . . . . . . . Time . | . . . . . . . . . Total Part Build Rating . | . . . . . . . . . Parts Repaired 1 | . . . 1 . . . . . Time 26 | . . . 26 . . . . . Parts Recycled . | . . . . . . . . . Recycled Matter . | . . . . . . . . . Retrieved Matter . | . . . . . . . . . Retrieved Components . | . . . . . . . . . Parts Scanalyzed . | . . . . . . . . . Part Schematics Acquired . | . . . . . . . . . Parts Damaged . | . . . . . . . . . Bothacking | -11 -10 -10 -9 -8 -7 -7 -7 -6 ------------ Run | Yrd Mat Min Mat Mat Fac Low Dat Pro Used RIF Installer . | . . . . . . . . . Robots Hacked . | . . . . . . . . . Non-combat . | . . . . . . . . . Combat . | . . . . . . . . . Robot Hacks Applied . | . . . . . . . . . Relay Couplers Released . | . . . . . . . . . Fabnet Peak Effective % . | . . . . . . . . . Robots Rewired . | . . . . . . . . . Allies Hacked . | . . . . . . . . . Hacks Repelled . | . . . . . . . . . Allies | -11 -10 -10 -9 -8 -7 -7 -7 -6 -------- Run | Yrd Mat Min Mat Mat Fac Low Dat Pro Total Allies 1 | . . . . . . . . 1 Largest Group 1 | . . . . . . . . 1 Highest-Rated Group 96 | . . . . . . . . 96 Highest-Rated Ally 96 | . . . . . . . . 96 Total Orders . | . . . . . . . . . Ally Attacks 20 | . . . . . . . . 20 Total Damage 700 | . . . . . . . . 700 Kills 6 | . . . . . . . . 6 Allies Corrupted . | . . . . . . . . . Allies Melted . | . . . . . . . . . Intel | -11 -10 -10 -9 -8 -7 -7 -7 -6 ------- Run | Yrd Mat Min Mat Mat Fac Low Dat Pro Robot Analysis Total . | . . . . . . . . . Derelict Logs Recovered . | . . . . . . . . . Drone Launches . | . . . . . . . . . Drone Recoveries . | . . . . . . . . . Exploration | -11 -10 -10 -9 -8 -7 -7 -7 -6 ------------- Run | Yrd Mat Min Mat Mat Fac Low Dat Pro Turns Passed 3111 | 66 1125 280 412 122 399 200 96 411 Spaces Moved 2623 | 35 545 127 513 234 383 200 97 489 Core 269 | 12 1 . . . 2 . . 254 Treads 694 | 23 544 127 . . . . . . Legs . | . . . . . . . . . Wheels 681 | . . . . . 273 200 97 111 Hover 124 | . . . . . . . . 124 Flight 855 | . . . 513 234 108 . . . Fastest Speed 34 | 50 160 160 34 40 40 100 100 50 Average Speed 91 | 162 160 160 39 40 82 100 100 72 Slowest Speed 250 | 250 250 160 117 40 100 100 100 250 Overloaded Moves . | . . . . . . . . . Propulsion Burnouts . | . . . . . . . . . Robots Hopped 3 | . . . 3 . . . . . Cave-ins Triggered . | . . . . . . . . . Exploration Rate (%) 34 | 4 71 26 37 31 10 32 72 30 Regions Visited 8 Branch Regions 4 Pre-discovered Areas 1 | . . . . . . . 1 . Known Exits Taken 1 | . 1 . . . . . . . Unknown Exits Taken 7 | 1 . 1 1 1 1 1 1 . Scrap Searched 4 | . . 1 . . . 1 . 2 Spaces Dug 7 | . . . 7 . . . . . Terrain Destroyed 231 | . 25 . 105 62 30 . . 9 Melee . | . . . . . . . . . Projectile 2 | . . . . . . . . 2 AOE 229 | . 25 . 105 62 30 . . 7 Terrain Rammed . | . . . . . . . . . Walls Destroyed . | . . . . . . . . . Machines Disabled . | . . . . . . . . . Actions | -11 -10 -10 -9 -8 -7 -7 -7 -6 --------- Run | Yrd Mat Min Mat Mat Fac Low Dat Pro Total 3149 | 41 730 159 696 252 448 199 96 528 Wait 254 | . 99 11 118 2 13 . . 11 Move 2609 | 34 544 126 506 233 382 199 96 489 Hop 3 | . . . 3 . . . . . Pick Up 24 | 1 8 4 8 1 . . . 2 Fast Attach 33 | 6 9 . 6 2 4 . . 6 Attach 17 | . . 3 7 1 4 . . 2 Detach 11 | . 3 . 6 1 . . . 1 Swap 7 | . 6 1 . . . . . . Drop 22 | . 7 . 13 2 . . . . Fire 132 | . 51 14 29 10 13 . . 15 Melee . | . . . . . . . . . Ram 2 | . . . . . . . . 2 Kick . | . . . . . . . . . Crush 3 | . 3 . . . . . . . Escape Stasis 32 | . . . . . 32 . . . Rewire . | . . . . . . . . . Trap . | . . . . . . . . . Miscellaneous . | . . . . . . . . . Route ------- -11/Scrapyard -10/Materials (discovered 2 exits: *Mat / *Min) -10/Mines -9/Materials (discovered 2 exits: *Mat / [*Min]) -8/Materials (discovered 2 exits: *Fac / [*Sto]) -7/Factory -7/Lower Caves -7/Data Miner -6/Proximity Caves History --------- Turn | Location | Event 15 | -11/Scrapyard | Discovered new exit (range 16) 67 | -11/Scrapyard | Entered Materials 302 | -10/Materials | Build established: Mutant 407 | -10/Materials | Discovered new exit (range 6) 1153 | -10/Materials | Discovered new exit (range 10) 1166 | -10/Materials | Identified exit to Mines 1192 | -10/Materials | Entered Mines 1261 | -10/Mines | Met a Derelict bent on vengeance 1290 | -10/Mines | Lost 3 parts (3w) 1350 | -10/Mines | Assembled infested the area 1379 | -10/Mines | Found a hidden stash of uninstalled traps 1464 | -10/Mines | Discovered new exit (range 6) 1472 | -10/Mines | Entered Materials 1472 | -9/Materials | Evolved 2 slots: Propulsion x2 1578 | -9/Materials | Destroyed 8 combat bots 1688 | -9/Materials | Discovered new exit (range 10) 1724 | -9/Materials | Repaired Flight Unit 1877 | -9/Materials | Discovered new exit (range 15) 1884 | -9/Materials | Entered another Materials area 1884 | -8/Materials | Evolved 2 slots: Propulsion x2 2000 | -8/Materials | Discovered new exit (range 16) 2003 | -8/Materials | Discovered new exit (range 7) 2006 | -8/Materials | Entered Factory 2006 | -7/Factory | Evolved 2 slots: Utility x2 2116 | -7/Factory | Lost 3 parts (1n1u1w) 2194 | -7/Factory | Lost 3 parts (1p2w) 2388 | -7/Factory | Discovered new exit (range 9) 2405 | -7/Factory | Entered Lower Caves 2406 | -7/Lower Caves | A Derelict revealed a hidden shortcut to meet someone special 2605 | -7/Lower Caves | Entered Data Miner 2605 | -7/Data Miner | Discovered new exit (range 6) 2624 | -7/Data Miner | Met Data Miner 2651 | -7/Data Miner | Learned location of Section 7 (-2) 2651 | -7/Data Miner | Acquired the access code to Warlord's prototype stash 2677 | -7/Data Miner | Received God Mode back door access code from Data Miner 2701 | -7/Data Miner | Entered Proximity Caves 2703 | -6/Proximity Caves | Spotter reported a threat 2705 | -6/Proximity Caves | Spotter reported a threat 2713 | -6/Proximity Caves | Escorted by Enhanced Grunt 2793 | -6/Proximity Caves | Spotted B-75 Beast 2814 | -6/Proximity Caves | Allies destroyed B-75 Beast 2840 | -6/Proximity Caves | Attracted the attention of an 0b10 outpost 2939 | -6/Proximity Caves | Released all parts (4) 2941 | -6/Proximity Caves | Core integrity fell below 50% 3071 | -6/Proximity Caves | Core integrity fell below 20% 3112 | -6/Proximity Caves | Destroyed by L-41 Fighter with Axe Last Messages --------------- 03061_ S-27 Virus destroyed. 03063_ Chain reaction triggered in Lgt. Nuclear Core. 03063_ S-27 Virus destroyed. 03072_ VTOL Module fries itself beyond repair. 03072_ Destroyed VTOL Module. 03077_ Lgt. Nuclear Core fries itself beyond repair. 03077_ Autogun fries itself beyond repair. 03094_ Searching scrap... 03094_ Found Sml. Matter Pod. 03094_ Found Imp. Cryofiber Web. 03094_ Found Arc Projector. 03094_ Found Com. Matter Pod. 03094_ Found 33 Matter. 03095_ Acquired 10 matter. 03097_ Acquired Com. Matter Pod. 03098_ Acquired 23 matter. 03105_ Neutron Cannon destroyed. 03108_ Acquired Arc Projector. Map ----- +----------------------------------------------------+ | ?????????????????????????????????????????????????? | | ?????????????????????????????????????????????????? | | ?????????????????????????????????????????????????? | | ?????????????????????????????????????????????????? | | ?????????????????????????????????????????????????? | | ?????????????????????????????????????????????????? | | ?????????????????????????????????????????????????? | | ?????????????????????????????????????????????????? | | ?????????????????????????????????????????????????? | | ?????????????????????????????????????????????????? | | ?????????????????????????????????????????????????? | | ?????????????????????????????????????????????????? | | ?????????????????????????????????????????????????? | | ?????????????????????????????????????????????????? | | ?????????????????????????????????????????????????? | | ####????????????###???????????##?????????????????? | | #????????????? ?????????? #?????????????????? | | ??????????????? ???????## #?????????????????? | | ???????????????# ??????# #??????????????????? | | ??????????????## ???## #???????????????????? | | #?????????????## #?## #????????????????????? | | #?????????# ## ## #?????????????????????? | | #?????????# #?????????????????????? | | #?????????# !! #?????????????????????? | | ###???????????###### l #?????????????????????? | | #"""""############## @ #?????????????????????? | | % s ;#????????????????????? | | ###????????????????????? | | ""##"############ ##??????????????????????? | | #???????????????######???????????????????????? | | #????????????????????????????????????????????? | | #???????????????????????????????????????????? | | #???????????????????????????????????????????? | | #???????????????????????????????????????????? | | ##???????????????????????????????????????????? | | ###????????????????????????????????????????????? | | ##??????????????????????????????????????????????? | | ???????????????????????????????????????????????? | | ??????????????????????????????????????????????? | | ###?????????????????????????????????????????????? | | #????????????????????????????????????????????????? | | ?????????????????????????????????????????????????? | | ?????????????????????????????????????????????????? | | ?????????????????????????????????????????????????? | | ?????????????????????????????????????????????????? | | ?????????????????????????????????????????????????? | | ?????????????????????????????????????????????????? | | ?????????????????????????????????????????????????? | | ?????????????????????????????????????????????????? | | ?????????????????????????????????????????????????? | +----------------------------------------------------+ Best States ------------- Heat Dissipation 34 Energy Generation 14 Energy Capacity 250 Matter Stores 313 Matter Capacity 450 Sight Range 18 Terrain Scan Density 10 Armor Coverage 225 Resistance: TH 20 Evasion (%) 63 Targeting Accuracy 6 Recoil Reduction 2 Energy Filtering 30 Salvage Targeting 1 Item Schematics ----------------- Combat Drone Bay | -7/Data Miner | Free Lgt. Regenerative Plating | -7/Data Miner | Free Biomechanical Wings | -7/Data Miner | Free Gravity Neutralizer | -7/Data Miner | Free Field Propulsion Drive | -7/Data Miner | Free Imp. Heavy Laser | -7/Data Miner | Free Imp. Launcher Guidance Computer | -7/Data Miner | Free Adv. Plasma Cannon | -7/Data Miner | Free Lgt. Fission Core | -7/Data Miner | Free Adv. Transmission Jammer | -7/Data Miner | Free Robot Schematics ------------------ L-41 Fighter | -7/Data Miner | Free B-48 Gladiator | -7/Data Miner | Free H-66 Slayer | -7/Data Miner | Free R-10 Processor | -7/Data Miner | Free G-50 Soldier | -7/Data Miner | Free Fabricated ------------ Nothing Alien Tech Used ----------------- None Achievements -------------- The Oracle Challenges ------------ None Game ------ Seed CooledFrostSpecial Manual? 0 Play Time 00:51:45 Cumulative 10.3 hours Start 2024.07.24 @ 15:08:11 End 2024.07.26 @ 20:11:47 Sessions 3 Manual Loads 0 Difficulty Rogue Special Mode None Game No. 18 Rogue 18 Adventurer 0 Explorer 0 Win Type - Total 0 Types 0/0/0/0/0/0/0/0/0 Lore% 14 Gallery% 13 Achievement% 14 Wizard Run 0 Options --------- Layout 1 ASCII 0 Keyboard 1 Movement Numpad Keybinds 0 Fullscreen 1 Font 16/SmallcapsGlow Map View 50x35 Zoom Use 0% Tactical HUD 1 Map Filters NONE Filters NONE Steam SD RUN: 8f078ecc-cea4-42d1-996c-c4f3d901c573